Cogmind - Beta 10.2 @@@ ROGUE MODE // 2020.12.29 @ 03:22:22 Player: Kaspr Result: Destroyed by L-41 Fighter with Axe Performance ------------- Evolutions (3) 1500 Regions Visited (4) 800 Robots Destroyed (49) 245 Value Destroyed (1584) 1584 Prototype IDs (3) 60 Alien Tech Used (0) 0 Bonus (0) 0 TOTAL SCORE: 4189 Bonus ------- None Cogmind --------- Core Integrity 0/700 Matter 7/300 Energy 133/140 System Corruption 8% Temperature Cool (78) Movement Hovering (180) Ox2 Location -7/Factory Parts ------- > --- POWER (1) -------- Light Deuterium Engine > --- PROPULSION (2) --- Gravmag System > --- UTILITY (6) ------ Medium Storage Unit Targeting Computer Layered Light Armor Plating > --- WEAPON (4) ------- Heavy Ion Cannon > --- INVENTORY (8) ---- Gravmag System Gravmag System Small Storage Unit Weapon Cycler Shock Rifle Lightning Gun Minigun Minigun Peak State ------------ > --- POWER ------------ Improved Deuterium Engine > --- PROPULSION ------- Gravmag System Gravmag System > --- UTILITY ---------- Small Storage Unit Targeting Computer Weapon Cycler Improved Utility Shielding Improved Light Armor Plating Medium Reactive Plating > --- WEAPON ----------- Lightning Gun Lightning Gun Lightning Gun Lightning Gun > --- INVENTORY -------- Light Deuterium Engine Gravmag System Lightning Gun Heavy Ion Cannon [Rating: 45] Favorites ----------- Power Light Nuclear Core Engine Heavy Ion Engine Power Core Light Nuclear Core Propulsion Aluminum Leg Leg Aluminum Leg Hover Unit Gravmag System Utility Targeting Computer Device Shield Generator Storage Small Storage Unit Processor Targeting Computer Hackware Hacking Suite Protection Improved Utility Shielding Weapon Minigun Energy Gun Lightning Gun Energy Cannon Heavy Ion Cannon Ballistic Gun Minigun Ballistic Cannon Assault Cannon Build | -11 -10 -9 -8 -7 ------- Run | Scr Mat Mat Mat Fac Slots Evolved 6 | . . 2 2 2 Power . | . . . . . Propulsion . | . . . . . Utility 4 | . . 2 . 2 Weapon 2 | . . . 2 . Parts Attached 76 | 6 11 11 10 38 Power 11 | 1 2 1 1 6 Engine 7 | 1 . 1 1 4 Core 4 | . 2 . . 2 Reactor . | . . . . . Propulsion 15 | 2 . 3 1 9 Treads . | . . . . . Leg 7 | 2 . 3 1 1 Wheel . | . . . . . Hover 8 | . . . . 8 Flight . | . . . . . Utility 23 | 1 6 4 4 8 Device 6 | . 1 1 1 3 Storage 6 | 1 3 . 1 1 Processor 3 | . 1 1 1 . Hackware 1 | . . . 1 . Protection 7 | . 1 2 . 4 Artifact . | . . . . . Weapon 27 | 2 3 3 4 15 Energy Gun 10 | 1 1 . . 8 Energy Cannon 1 | . . . . 1 Ballistic Gun 15 | 1 2 3 3 6 Ballistic Cannon 1 | . . . 1 . Launcher . | . . . . . Special Weapon . | . . . . . Impact Weapon . | . . . . . Slashing Weapon . | . . . . . Piercing Weapon . | . . . . . Special Melee Weapon . | . . . . . Unidentified Prototypes 1 | . . . 1 . Parts Lost 25 | . 1 3 2 19 Power 3 | . . 1 . 2 Propulsion 6 | . . 1 1 4 Utility 7 | . . 1 . 6 Weapon 9 | . 1 . 1 7 Highest Loss Streak 9 | . 1 1 1 9 Average Slot Usage (%) 88 | . 90 92 86 85 Engine 5 | . 4 1 9 6 Core 4 | . 8 8 . . Leg 14 | . 28 19 16 3 Hover 3 | . . . . 9 Device 7 | . 2 17 4 7 Storage 4 | . 4 . 1 7 Processor 12 | . 10 21 16 7 Hackware 1 | . . . 5 3 Protection 6 | . 5 2 7 9 Energy Gun 7 | . 11 4 . 7 Ballistic Gun 16 | . 13 17 21 15 Ballistic Cannon 1 | . . . 3 2 Naked Turns . | . . . . . Heaviest Build 62 | 10 38 16 31 62 Greatest Support 25 | 20 20 20 25 25 Greatest Overweight (x) 6 | 2 1 1 2 6 Average Overweight (x) . | . . . . 1 Largest Inventory Capacity 16 | 6 16 4 6 8 Average Capacity 5 | 5 5 4 4 6 Most Carried 8 | 6 7 4 5 8 Average Carried 3 | 2 3 2 1 4 Final Capacity 8 | 6 4 4 6 8 Final Carried 8 | 4 4 . 3 8 Class Distribution -------------------- 59% | Mutant 24% | Tank 14% | Gunner Dominant Class ---------------- Mutant | -10/Materials Mutant | -9/Materials Mutant | -8/Materials Tank | -7/Factory Resources | -11 -10 -9 -8 -7 ----------- Run | Scr Mat Mat Mat Fac Matter Collected 1746 | 220 361 277 197 691 Remotely . | . . . . . Salvage Created 1801 | . 322 470 244 765 Parts 110 | . 27 27 6 50 Haulers Intercepted . | . . . . . Recyclers Shooed 6 | . 2 . . 4 Parts Field Recycled . | . . . . . Retrieved Matter . | . . . . . Parts Self-Destructed . | . . . . . Prevented . | . . . . . Kills | -11 -10 -9 -8 -7 ------- Run | Scr Mat Mat Mat Fac Combat Hostiles Destroyed 42 | . 10 14 6 12 Guns 29 | . 8 13 4 4 Cannons 8 | . . . 2 6 AOE 3 | . 2 1 . . Classes Destroyed 9 | . 4 1 2 2 Worker 3 | . 1 1 . 1 Recycler 2 | . 1 . . 1 Watcher 2 | . . . . 2 Swarmer 12 | . 6 3 . 3 Grunt 20 | . 4 9 4 3 Duelist 2 | . . . 1 1 Sentry 5 | . . 2 . 3 Hunter 1 | . . . 1 . Programmer 2 | . . . . 2 Best Kill Streak 5 | . 5 4 3 5 Combat Bots Only 4 | . 3 4 3 3 Max Kills in Single Turn 2 | . 2 2 1 2 Gunslinging 1 | . . 1 . . Exploded 2 | . 2 1 . . Melee . | . . . . . Uniques/NPCs Destroyed . | . . . . . Combat | -11 -10 -9 -8 -7 -------- Run | Scr Mat Mat Mat Fac Damage Taken 4289 | . 326 559 568 2836 Core 959 | . 41 100 94 724 Absorbed by Shields 350 | . 8 77 . 265 Core Remaining (%) 85 | 100 83 75 82 . Volleys Fired 147 | . 34 34 22 57 Largest 4 | . 2 2 4 4 Hottest 220 | . 63 63 115 220 Shots Fired 354 | . 60 68 59 167 Gun 322 | . 60 68 54 140 Cannon 32 | . . . 5 27 Launcher . | . . . . . Special . | . . . . . Kinetic 250 | . 34 57 59 100 Thermal 28 | . 13 . . 15 Explosive . | . . . . . Electromagnetic 76 | . 13 11 . 52 Robot Hit Streak 12 | . 11 10 12 11 Robot Miss Streak 10 | . 4 3 3 10 Penetration Max . | . . . . . Secondary Targets 4 | . 1 3 . . Max Gunslinging Chain 1 | . 1 1 . . Shots Hit Robots 222 | . 36 51 46 89 Core Hits 102 | . 21 28 19 34 Critical Hits . | . . . . . Critical Kills . | . . . . . Critical Parts Destroyed . | . . . . . Melee Attacks . | . . . . . Impact . | . . . . . Slashing . | . . . . . Piercing . | . . . . . Sneak Attacks . | . . . . . Combat Hostiles . | . . . . . Follow-up Attacks . | . . . . . Damage Inflicted 3689 | . 629 809 717 1534 Guns 2875 | . 528 710 616 1021 Cannons 507 | . . . 101 406 Explosions 174 | . 89 85 . . Melee . | . . . . . Ramming 133 | . 12 14 . 107 Kinetic 2520 | . 311 657 717 835 Thermal 482 | . 186 49 . 247 Explosive . | . . . . . Electromagnetic 554 | . 120 89 . 345 Impact . | . . . . . Slashing . | . . . . . Piercing . | . . . . . Highest Corruption 8 | . 2 2 . 8 Average Corruption 2 | . 2 2 . 3 Corruption Purged . | . . . . . Effects 35 | . 7 7 . 21 Message Errors 7 | . 1 3 . 3 Matter Fused 7 | . . . . 7 Heat Flow Errors 4 | . 3 . . 1 Energy Discharges 6 | . 2 1 . 3 Data Loss (minor) 1 | . . 1 . . Targeting Errors 10 | . 1 2 . 7 Overload Shots . | . . . . . Overflow Damage 35 | . 13 . . 22 Projectiles 20 | . . . . 20 Explosions 13 | . 13 . . . Melee 2 | . . . . 2 Knockbacks 5 | . . . 2 3 Impact 2 | . . . . 2 Kinetic 3 | . . . 2 1 Secondary . | . . . . . Self-Inflicted Damage 81 | . 6 25 . 50 Shots 1 | . . 1 . . Rammed 26 | . 2 1 . 23 Targets Rammed 27 | . 2 2 . 23 Kicked 1 | . . 1 . . Crushed . | . . . . . Highest Temperature 814 | . 267 20 237 814 Average Temperature 166 | . 57 11 53 232 Received Heat Transfer 645 | . 74 238 126 207 Effects 31 | . 3 . . 28 Shutdowns 6 | . . . . 6 Energy Bleed 4 | . . . . 4 Interference 5 | . 3 . . 2 Matter Decay 4 | . . . . 4 Short Circuit 3 | . . . . 3 Damage (minor) 2 | . . . . 2 Damage (major) 3 | . . . . 3 Damage (core) 4 | . . . . 4 Siege Activations . | . . . . . Robots Corrupted 2 | . . . . 2 Combat Hostiles 2 | . . . . 2 Parts Fried 3 | . . . . 3 Impact Corruptions 1 | . . . . 1 Robots Melted . | . . . . . Combat Hostiles . | . . . . . Parts Melted 1 | . . . . 1 Heat Transferred 808 | . 375 100 . 333 Parts Sabotaged . | . . . . . Parts Stolen . | . . . . . Parts Stripped . | . . . . . Power Chain Reactions 2 | . 1 1 . . Missiles Intercepted . | . . . . . Alert | -11 -10 -9 -8 -7 ------- Run | Scr Mat Mat Mat Fac Peak Influence 318 | . 180 299 318 187 Initial 126 | . . 76 126 53 Average 106 | . 82 118 220 80 Maximum Alert Level 1 | . . 1 1 . Low Security (%) 86 | 100 100 80 30 100 Level 1 13 | . . 19 69 . Level 2 . | . . . . . Level 3 . | . . . . . Level 4 . | . . . . . Level 5 . | . . . . . High Security . | . . . . . Max Security . | . . . . . Squads Dispatched 14 | . 1 4 3 6 Investigation 2 | . 1 1 . . Extermination 2 | . . . . 2 Reinforcement 7 | . . 3 3 1 Assault . | . . . . . Garrison 3 | . . . . 3 Intercept . | . . . . . Construction Impeded . | . . . . . Haulers Reinforced . | . . . . . Stealth | -11 -10 -9 -8 -7 --------- Run | Scr Mat Mat Mat Fac Distress Signals 5 | . . 3 1 1 Communications Jammed . | . . . . . Distress Signals . | . . . . . Times Spotted 81 | . 20 25 14 22 Peak Tracking Total 6 | . 6 6 6 4 Tactical Retreats 4 | . . 3 . 1 Traps | -11 -10 -9 -8 -7 ------- Run | Scr Mat Mat Mat Fac Traps Triggered 3 | . 1 1 . 1 Indirectly . | . . . . . Trap Hack Attempts . | . . . . . Triggered . | . . . . . Disarmed . | . . . . . Reprogrammed . | . . . . . Reused . | . . . . . Traps Extracted . | . . . . . Installed . | . . . . . Triggered 1 | . . . . 1 Machines | -11 -10 -9 -8 -7 ---------- Run | Scr Mat Mat Mat Fac Machines Disabled 4 | . 1 2 . 1 Max in Single Turn 2 | . 1 2 . 1 Machines Sabotaged . | . . . . . Garrisons Compromised . | . . . . . Overloaded Fab Kills . | . . . . . Fab Network Shutdowns . | . . . . . Hacking | -11 -10 -9 -8 -7 --------- Run | Scr Mat Mat Mat Fac Machines Accessed 8 | . 3 4 . 1 Terminals 6 | . 2 3 . 1 Fabricators . | . . . . . Repair Stations 1 | . 1 . . . Recycling Units . | . . . . . Scanalyzers 1 | . . 1 . . Garrison Access . | . . . . . Total Hacks 26 | . 10 15 . 1 Successful 19 | . 7 11 . 1 Failed 7 | . 3 4 . . Catastrophic 2 | . 2 . . . Database Lockouts . | . . . . . Manual . | . . . . . Terminals 16 | . 5 10 . 1 Fabricators . | . . . . . Repair Stations 5 | . 5 . . . Recycling Units . | . . . . . Scanalyzers 5 | . . 5 . . Garrison Access . | . . . . . Terminal Hacks 11 | . 3 7 . 1 Record 3 | . 2 1 . . Prototype ID Bank 1 | . . 1 . . Emergency Access Points 2 | . . 2 . . Alert Level 2 | . . 1 . 1 Unreport Threat 1 | . . 1 . . Dispatch Records 1 | . 1 . . . Reinforcement Status 1 | . . 1 . . Fabricator Hacks . | . . . . . Repair Station Hacks 4 | . 4 . . . Scan Component 2 | . 2 . . . Repair 2 | . 2 . . . Recycling Unit Hacks . | . . . . . Scanalyzer 4 | . . 4 . . Insert Component 2 | . . 2 . . Analyze 2 | . . 2 . . Garrison Access Hacks . | . . . . . Unauthorized Hacks . | . . . . . Terminals . | . . . . . Fabricators . | . . . . . Repair Stations . | . . . . . Recycling Units . | . . . . . Scanalyzers . | . . . . . Garrison Access . | . . . . . Data Cores Recovered . | . . . . . Used . | . . . . . Hacking Detections 5 | . 2 3 . . Full Trace Events 1 | . 1 . . . Feedback Events . | . . . . . Feedback Blocked . | . . . . . Robot Schematics Acquired . | . . . . . Robots Built . | . . . . . Matter . | . . . . . Time . | . . . . . Total Robot Build Rating . | . . . . . Part Schematics Acquired 2 | . . 2 . . Parts Built . | . . . . . Matter . | . . . . . Time . | . . . . . Total Part Build Rating . | . . . . . Parts Repaired 2 | . 2 . . . Time 64 | . 64 . . . Parts Recycled . | . . . . . Recycled Matter . | . . . . . Retrieved Matter . | . . . . . Retrieved Components . | . . . . . Parts Scanalyzed 2 | . . 2 . . Part Schematics Acquired 2 | . . 2 . . Parts Damaged . | . . . . . Bothacking | -11 -10 -9 -8 -7 ------------ Run | Scr Mat Mat Mat Fac Used RIF Installer . | . . . . . Robots Hacked . | . . . . . Non-combat . | . . . . . Combat . | . . . . . Robot Hacks Applied . | . . . . . Relay Couplers Released . | . . . . . Robots Rewired . | . . . . . Allies Hacked . | . . . . . Hacks Repelled . | . . . . . Allies | -11 -10 -9 -8 -7 -------- Run | Scr Mat Mat Mat Fac Total Allies 3 | . . . . 3 Largest Group 3 | . . . . 3 Highest-Rated Group 93 | . . . . 93 Highest-Rated Ally 31 | . . . . 31 Total Orders . | . . . . . Ally Attacks 28 | . . . . 28 Total Damage 502 | . . . . 502 Kills 3 | . . . . 3 Allies Corrupted . | . . . . . Allies Melted . | . . . . . Intel | -11 -10 -9 -8 -7 ------- Run | Scr Mat Mat Mat Fac Robot Analysis Total . | . . . . . Derelict Logs Recovered . | . . . . . Drone Launches . | . . . . . Drone Recoveries . | . . . . . Exploration | -11 -10 -9 -8 -7 ------------- Run | Scr Mat Mat Mat Fac Turns Passed 3221 | 93 789 688 445 1206 Spaces Moved 1701 | 76 521 433 238 433 Core 25 | 22 . . . 3 Treads . | . . . . . Legs 1438 | 54 521 433 238 192 Wheels . | . . . . . Hover 238 | . . . . 238 Flight . | . . . . . Fastest Speed 50 | 50 120 120 120 116 Average Speed 132 | 102 120 125 133 158 Slowest Speed 360 | 150 150 150 180 360 Overloaded Moves . | . . . . . Propulsion Burnouts . | . . . . . Robots Hopped . | . . . . . Cave-ins Triggered . | . . . . . Exploration Rate (%) 22 | 3 57 27 18 9 Regions Visited 4 Branch Regions . Pre-discovered Areas . | . . . . . Known Exits Taken 1 | . . 1 . . Unknown Exits Taken 3 | 1 1 . 1 . Scrap Searched . | . . . . . Spaces Dug . | . . . . . Terrain Destroyed 15 | . 4 6 1 4 Melee . | . . . . . Projectile 5 | . . . 1 4 AOE 10 | . 4 6 . . Terrain Rammed . | . . . . . Walls Destroyed . | . . . . . Machines Disabled . | . . . . . Actions | -11 -10 -9 -8 -7 --------- Run | Scr Mat Mat Mat Fac Total 2408 | 91 631 512 327 847 Wait 324 | . 25 16 34 249 Move 1697 | 75 520 432 237 433 Hop . | . . . . . Pick Up 76 | 10 23 8 14 21 Fast Attach 7 | . . . . 7 Attach 58 | 6 10 7 10 25 Detach 22 | . 3 2 5 12 Swap 11 | . 1 4 . 6 Drop 39 | . 13 7 5 14 Fire 147 | . 34 34 22 57 Melee . | . . . . . Ram 23 | . . . . 23 Kick 4 | . 2 2 . . Crush . | . . . . . Escape Stasis . | . . . . . Rewire . | . . . . . Trap . | . . . . . Miscellaneous . | . . . . . Route ------- -11/Scrapyard -10/Materials (discovered 2 exits: *Mat x2) -9/Materials -8/Materials -7/Factory History --------- Turn | Location | Event 7 | -11/Scrapyard | Discovered new exit (range 14) 94 | -11/Scrapyard | Entered Materials 322 | -10/Materials | Build established: Mutant 429 | -10/Materials | Discovered new exit (range 16) 485 | -10/Materials | Repaired Assault Rifle 523 | -10/Materials | Repaired Lgt. Nuclear Core 821 | -10/Materials | Discovered new exit (range 8) 883 | -10/Materials | Entered another Materials area 883 | -9/Materials | Evolved 2 slots: Utility x2 1333 | -9/Materials | Discovered new exit (range 3) 1570 | -9/Materials | Identified exit to Materials 1571 | -9/Materials | Entered another Materials area 1571 | -8/Materials | Evolved 2 slots: Weapon x2 1878 | -8/Materials | Discovered new exit (range 5) 2016 | -8/Materials | Entered Factory 2016 | -7/Factory | Evolved 2 slots: Utility x2 2334 | -7/Factory | Build established: Tank 2574 | -7/Factory | Lost 9 parts (1p2n2u4w) 2611 | -7/Factory | Garrison activated, responded to threat 2926 | -7/Factory | Lost 4 parts (1u3w) 3032 | -7/Factory | Core integrity fell below 50% 3055 | -7/Factory | Core integrity fell below 20% 3069 | -7/Factory | Lost 3 parts (1p2u) 3222 | -7/Factory | Destroyed by L-41 Fighter with Axe Last Messages --------------- Minigun permanently disabled. Overheating: Short circuit. K-01 Serf collects debris. Overheating: Core damaged (-91). Power failure, Lgt. Deuterium Engine shutdown. Overheating: Energy bleed (-2). R-06 Scavenger collects Lgt. Nuclear Core. Overheating: Matter decay (-19). Overheating: Core damaged (-98). R-06 Scavenger collects VTOL Module. System corrupted: Matter fused (-10). System corrupted: Matter fused (-8). K-01 Serf collects debris. System corrupted: Matter fused (-7). System corrupted: Matter fused (-8). System corrupted: Matter fused (-9). Destroyed Carbon-fiber Leg. System corrupted: Minigun targeting data glitched. Gravmag System destroyed. Dropped Broken Minigun. Map ----- +----------------------------------------------------+ | ?????????????????????????????????????????????????? | | ?????????????????????????????????????????????????? | | ?????????????????????????????????????????????????? | | ?????????????????????????????????????????????????? | | ?????????????????????????????????????????????????? | | ?????????????????????????????????????????????????? | | ?????????????????????????????????????????????????? | | ?????????????????????????????????????????????????? | | ?????????????????????????????????????????????????? | | ?????????????????????????????????????????????????? | | ?????????????????????????????????????????????????? | | ?????????????????????????????????????????????????? | | ?????????????????????????????????????????????????? | | ?????????????????????????????????????????????????? | | ??????????????????????###????????????????????????? | | ??????????????????????# ????????? #?????????????? | | ??????????????????????# ?????? #?????????????? | | ??????????????????????# ??? #?????????????? | | ??????????????????????# """"? #?? ??????????? | | ??????????????????????+ """" # ??????????? | | ??????????????????????#%"""" + ????????????? | | ??????????????????????# """ #?????????????? | | ??????????????????????# """ #?????????????? | | ??????????????????????# "" == #?????????????? | | ??????????????????????#% l == #?????????????? | | ??????????????????????# @ #?????????????? | | ?????????????????????## [ #?????????????? | | ?????????????????????##+############?????????????? | | ?????????????????????## #????????????????????????? | | ??????????????????????#%#????????????????????????? | | ??????????????????????#!#???????##???????????????? | | ??????????????????????#!#?###### #???????????????? | | ??????????????????????#!#?# | #???????????????? | | ?????????????????????## ### #???????????????? | | ?????????????????????# ## #???????????????? | | ?????????????????????# + #???????????????? | | ?????????????????????# ## #???????????????? | | ?????????????????????# ## """ *#???????????????? | | ????????????????????## ## """ #???????????????? | | ????????????????????# # """ #???????????????? | | ????????????????????# # #???????????????? | | ????????????????????# # """ /#???????????????? | | ????????????????????+ + """ #???????????????? | | ????????????????????# # """= #???????????????? | | ????????????????????# # #???????????????? | | ??????????????????### ########???????????????? | | ??????????????????# ##########???????????? | | ########+########## #???????????? | | #???????????? | | #???????????? | +----------------------------------------------------+ Best States ------------- Heat Dissipation 34 Energy Generation 18 Energy Capacity 290 Matter Stores 300 Matter Capacity 300 Sight Range 16 Robot Scan Range 13 Terrain Scan Density 10 Armor Coverage 525 Resistance: KI 30 Utility Shielding 66 Weapon Cycling 15 Evasion (%) 50 Targeting Accuracy 5 Melee Accuracy 5 Offensive Hacking 10 Item Schematics ----------------- Shotgun | -9/Materials | Scanalyzed Imp. Signal Interpreter | -9/Materials | Scanalyzed Robot Schematics ------------------ None Fabricated ------------ Nothing Alien Tech Used ----------------- None Achievements -------------- Everything Is Under Control Hey, That's Mine! Oops Power Corrupts Challenges ------------ None Game ------ Seed ChipShadeReplicator Manual? 0 Play Time 01:23:29 Cumulative 5.1 hours Start 2020.12.29 @ 01:31:21 End 2020.12.29 @ 03:22:22 Sessions 2 Manual Loads 0 Difficulty Rogue Special Mode None Game No. 8 Rogue 8 Adventurer 0 Explorer 0 Win Type - Total 0 Types 0/0/0/0/0/0/0/0/0 Lore% 7 Gallery% 7 Achievement% 7 Wizard Run 0 Options --------- ASCII 0 Keyboard 1 Movement Numpad Keybinds 0 Fullscreen 1 Font 18/SmallcapsGlow Map View 76x50 Tactical HUD 0 Map Filters NONE Filters NONE Steam 1 RUN: f7528915-30be-49e3-a65b-defa852a604c